fUSD/lending_fUSD_20240923
["ID","MTS","AMOUNT","RATE_DAILY","PERIOD"]
[338910815,1727062274226,500.0,0.00021999,120]
[338910816,1727062274416,500.0,0.00021999,120]
[338910817,1727062274525,500.0,0.00021999,120]
[338910818,1727062274676,500.0,0.00021999,120]
[338910819,1727062274816,500.0,0.00021999,120]
[338910820,1727062274882,500.0,0.00021999,120]
[338910821,1727062274971,500.0,0.00021999,120]
[338910822,1727062275108,500.0,0.00021999,120]
[338910823,1727062275243,500.0,0.00021999,120]
[338910824,1727062275546,500.0,0.00021999,120]
[338910825,1727062275611,231.57858727,0.00021999,120]
[338910826,1727062275810,500.0,0.00021999,120]
[338910827,1727062275894,500.0,0.00021999,120]
[338910828,1727062276082,503.19906433,0.00021999,120]
[338910829,1727062276209,500.0,0.00021999,120]
[338910830,1727062276476,500.0,0.00021999,120]
[338910831,1727062276727,500.0,0.00021999,120]
[338910832,1727062277082,500.0,0.00021999,120]
[338910833,1727062277336,500.0,0.00021999,120]
[338910834,1727062277594,500.0,0.00021999,120]
[338910835,1727062277653,500.0,0.00021999,120]
[338910836,1727062277931,194.32518359,0.00021999,120]
[338910837,1727062277993,500.0,0.00021999,120]
[338910838,1727062278231,500.0,0.00021999,120]
[338910839,1727062278672,500.0,0.00021999,120]
[338910840,1727062278929,502.1630314,0.00021999,120]
[338910841,1727062279984,500.0,0.00021999,120]
[338910842,1727062280843,1977.5076,0.0001198,2]
[338910843,1727062281358,500.0,0.00021999,120]
[338910844,1727062281647,500.0,0.00021999,120]
[338910845,1727062281940,500.0,0.00021999,120]
[338910846,1727062282299,500.0,0.00021999,120]
[338910847,1727062282572,500.0,0.00021999,120]
[338910848,1727062282638,501.96500256,0.00021999,120]
[338910849,1727062282835,500.0,0.00021999,120]
[338910850,1727062283145,502.71141487,0.00021999,120]
[338910851,1727062285229,887.269901,0.000119,2]
[338910852,1727062286878,3799.5184,0.0001198,2]
[338910853,1727062287067,500.0,0.00021999,120]
[338910854,1727062287353,500.0,0.00021999,120]
[338910855,1727062287578,384.833,0.0001198,2]
[338910856,1727062287647,500.0,0.00021999,120]
[338910857,1727062287966,500.0,0.00021999,120]
[338910858,1727062288217,500.0,0.00021999,120]
[338910859,1727062288851,500.0,0.00021999,120]
[338910860,1727062289158,565.84824891,0.00021999,120]
[338910861,1727062289509,303.33034868,0.00021999,120]
[338910862,1727062291145,500.0,0.00021999,120]
[338910863,1727062291223,500.0,0.00021999,120]
[338910864,1727062291483,500.0,0.00021999,120]
[338910866,1727062291728,500.0,0.00021999,120]
[338910867,1727062291790,500.0,0.00021999,120]
[338910868,1727062292025,500.0,0.00021999,120]
[338910869,1727062292088,500.0,0.00021999,120]
[338910870,1727062292290,500.0,0.00021999,120]
[338910871,1727062292367,500.0,0.00021999,120]
[338910872,1727062292568,500.0,0.00021999,120]
[338910873,1727062292654,500.0,0.00021999,120]
[338910874,1727062292867,500.0,0.00021999,120]
[338910875,1727062292931,500.0,0.00021999,120]
[338910876,1727062293176,500.0,0.00021999,120]
[338910877,1727062293243,500.0,0.00021999,120]
[338910878,1727062293438,500.0,0.00021999,120]
[338910879,1727062293504,500.0,0.00021999,120]
[338910880,1727062293812,500.0,0.00021999,120]
[338910881,1727062293875,500.0,0.00021999,120]
[338910882,1727062294009,500.0,0.00021999,120]
[338910883,1727062294129,500.0,0.00021999,120]
[338910884,1727062294309,500.0,0.00021999,120]
[338910885,1727062294528,500.0,0.00021999,120]
[338910886,1727062294623,500.0,0.00021999,120]
[338910887,1727062294913,500.0,0.00021999,120]
[338910888,1727062295173,500.0,0.00021999,120]
[338910889,1727062295438,500.0,0.00021999,120]
[338910890,1727062295616,500.0,0.00021999,120]
[338910891,1727062295760,500.0,0.00021999,120]
[338910892,1727062295893,500.0,0.00021999,120]
[338910893,1727062296085,500.0,0.00021999,120]
[338910894,1727062296328,500.0,0.00021999,120]
[338910895,1727062296401,500.0,0.00021999,120]
[338910896,1727062296632,500.0,0.00021999,120]
[338910897,1727062296698,500.0,0.00021999,120]
[338910898,1727062296952,301.21532781,0.00021999,120]
[338910899,1727062297025,500.0,0.00021999,120]
[338910900,1727062297283,500.0,0.00021999,120]
[338910901,1727062297537,186.3844993,0.00021999,120]
[338910902,1727062298918,500.0,0.00021999,120]
[338910903,1727062299230,502.17952904,0.00021999,120]
[338910904,1727062311433,500.0,0.00021999,120]
[338910905,1727062311724,500.0,0.00021999,120]
[338910906,1727062312014,500.0,0.00021999,120]
[338910907,1727062312292,360.13108844,0.00021999,120]
[338910908,1727062314987,150.0,0.00021999,120]
[338910909,1727062315102,150.0,0.00021999,120]
[338910910,1727062315401,150.0,0.00021999,120]
[338910911,1727062315675,150.0,0.00021999,120]
[338910912,1727062316020,150.0,0.00021999,120]
[338910913,1727062316293,150.0,0.00021999,120]
[338910914,1727062316893,150.0,0.00021999,120]
[338910915,1727062317165,160.53471498,0.00021999,120]
[338910916,1727062320210,500.0,0.00021999,120]
[338910917,1727062320461,500.0,0.00021999,120]
[338910918,1727062320719,500.0,0.00021999,120]
[338910919,1727062320971,500.0,0.00021999,120]
[338910920,1727062321296,500.0,0.00021999,120]
[338910921,1727062321580,500.0,0.00021999,120]
[338910922,1727062321833,500.0,0.00021999,120]
[338910923,1727062322428,500.0,0.00021999,120]
[338910924,1727062322684,500.0,0.00021999,120]
[338910925,1727062322978,500.0,0.00021999,120]
[338910926,1727062323483,500.0,0.00021999,120]
[338910927,1727062323564,500.0,0.00021999,120]
[338910928,1727062323799,500.0,0.00021999,120]
[338910929,1727062324128,500.0,0.00021999,120]
[338910930,1727062324401,500.0,0.00021999,120]
[338910931,1727062324650,380.98945993,0.00021999,120]
[338910932,1727062327130,500.0,0.00021999,120]
[338910933,1727062327424,500.0,0.00021999,120]
[338910934,1727062327692,500.0,0.00021999,120]
[338910935,1727062328006,500.0,0.00021999,120]
[338910936,1727062328298,500.0,0.00021999,120]
[338910937,1727062328566,500.0,0.00021999,120]
[338910938,1727062328855,500.0,0.00021999,120]
[338910939,1727062329136,500.0,0.00021999,120]
[338910940,1727062329424,500.0,0.00021999,120]
[338910941,1727062329753,500.0,0.00021999,120]
[338910942,1727062330030,500.0,0.00021999,120]
[338910943,1727062330301,500.0,0.00021999,120]
[338910944,1727062330586,500.0,0.00021999,120]
[338910945,1727062330846,500.0,0.00021999,120]
[338910946,1727062331483,500.0,0.00021999,120]
[338910947,1727062331833,500.0,0.00021999,120]
[338910948,1727062332126,500.0,0.00021999,120]
[338910949,1727062332481,564.80267013,0.00021999,120]
[338910951,1727062347617,152.90470343,0.00012,2]
[338910952,1727062348706,4845.1538,0.0001198,2]
[338910953,1727062361167,500.0,0.00021999,120]
[338910954,1727062361435,500.0,0.00021999,120]
[338910955,1727062361809,500.0,0.00021999,120]
[338910956,1727062362355,500.0,0.00021999,120]
[338910957,1727062362654,500.0,0.00021999,120]
[338910958,1727062362908,500.0,0.00021999,120]
[338910959,1727062363225,500.0,0.00021999,120]
[338910960,1727062363544,500.0,0.00021999,120]
[338910961,1727062363573,3394.9026,0.0001198,2]
[338910962,1727062364925,500.0,0.00021999,120]
[338910963,1727062365187,500.0,0.00021999,120]
[338910964,1727062365475,500.0,0.00021999,120]
[338910965,1727062365507,123771.0489351,0.0001198,2]
[338910966,1727062365532,65413.7646649,0.0001198,2]
[338910967,1727062365795,500.0,0.00021999,120]
[338910968,1727062366072,500.0,0.00021999,120]
[338910969,1727062366453,500.0,0.00021999,120]
[338910970,1727062366906,500.0,0.00021999,120]
[338910971,1727062366995,500.0,0.00021999,120]
[338910972,1727062367266,558.14825207,0.00021999,120]
[338910973,1727062369318,660.54,0.00021999,120]
[338910974,1727062369606,660.54,0.00021999,120]
[338910975,1727062369875,660.54,0.00021999,120]
[338910976,1727062370129,660.54,0.00021999,120]
[338910977,1727062370394,660.54,0.00021999,120]
[338910978,1727062370739,660.54,0.00021999,120]
[338910979,1727062371005,660.54,0.00021999,120]
[338910980,1727062371273,660.54,0.00021999,120]
[338910981,1727062371561,660.54,0.00021999,120]
[338910982,1727062371861,660.54,0.00021999,120]
[338910983,1727062372485,660.54,0.00021999,120]
[338910984,1727062372798,660.54,0.00021999,120]
[338910985,1727062373090,660.54,0.00021999,120]
[338910986,1727062373404,660.54,0.00021999,120]
[338910987,1727062373668,660.54,0.00021999,120]
[338910988,1727062373983,660.54,0.00021999,120]
[338910989,1727062374254,660.54,0.00021999,120]
[338910990,1727062374829,660.54,0.00021999,120]
[338910991,1727062375018,660.54,0.00021999,120]
[338910992,1727062375285,660.54,0.00021999,120]
[338910993,1727062375425,167.63655556,0.0001198,2]
[338910994,1727062375449,167.63655556,0.0001198,2]
[338910995,1727062375473,167.63655556,0.0001198,2]
[338910996,1727062375495,167.63655556,0.0001198,2]
[338910997,1727062375519,167.63655556,0.0001198,2]
[338910998,1727062375540,167.63655556,0.0001198,2]
[338910999,1727062375564,167.63655556,0.0001198,2]
[338911000,1727062375586,167.63655556,0.0001198,2]
[338911001,1727062375608,167.63655556,0.0001198,2]
[338911002,1727062375632,167.63655556,0.0001198,2]
[338911003,1727062375655,167.63655556,0.0001198,2]
[338911004,1727062375675,167.63655556,0.0001198,2]
[338911005,1727062375695,167.63655556,0.0001198,2]
[338911006,1727062375715,167.63655556,0.0001198,2]
[338911007,1727062375734,167.63655556,0.0001198,2]
[338911008,1727062375753,167.63655556,0.0001198,2]
[338911009,1727062375773,167.63655556,0.0001198,2]
[338911010,1727062375792,167.63655556,0.0001198,2]
[338911011,1727062375811,167.63655556,0.0001198,2]
[338911012,1727062375834,167.63655556,0.0001198,2]
[338911013,1727062375856,167.63655556,0.0001198,2]
[338911014,1727062375878,167.63655556,0.0001198,2]
[338911015,1727062375901,167.63655556,0.0001198,2]
[338911016,1727062375921,167.63655556,0.0001198,2]
[338911017,1727062375941,167.63655556,0.0001198,2]
[338911018,1727062375963,167.63655556,0.0001198,2]
[338911019,1727062375985,167.63655556,0.0001198,2]
[338911020,1727062376008,315.71349988,0.0001198,2]
[338911021,1727062376089,660.54,0.00021999,120]
[338911022,1727062376222,660.54,0.00021999,120]
[338911023,1727062376319,660.54,0.00021999,120]
[338911024,1727062376451,660.61155064,0.00021999,120]
[338911025,1727062378878,500.0,0.00021999,120]
[338911026,1727062379211,500.0,0.00021999,120]
[338911027,1727062379509,500.0,0.00021999,120]
[338911028,1727062379761,500.0,0.00021999,120]
[338911029,1727062380018,500.0,0.00021999,120]
[338911030,1727062380388,500.0,0.00021999,120]
[338911031,1727062380708,500.0,0.00021999,120]
[338911032,1727062381002,500.0,0.00021999,120]
[338911033,1727062381383,500.0,0.00021999,120]
[338911034,1727062381702,500.0,0.00021999,120]
[338911035,1727062381994,500.0,0.00021999,120]
[338911036,1727062382271,500.0,0.00021999,120]
[338911037,1727062382566,500.0,0.00021999,120]
[338911038,1727062382840,500.0,0.00021999,120]
[338911039,1727062383112,500.0,0.00021999,120]
[338911040,1727062383412,500.0,0.00021999,120]
[338911041,1727062383695,500.0,0.00021999,120]
[338911042,1727062383976,500.0,0.00021999,120]
[338911043,1727062384278,500.0,0.00021999,120]
[338911044,1727062384580,500.0,0.00021999,120]
[338911045,1727062384868,401.04025314,0.00021999,120]
[338911046,1727062386970,500.0,0.00021999,120]
[338911047,1727062387310,500.0,0.00021999,120]
[338911048,1727062387632,500.0,0.00021999,120]
[338911049,1727062387885,500.0,0.00021999,120]
[338911050,1727062388359,486.94786038,0.00021999,120]
[338911051,1727062409016,500.0,0.00021999,120]
[338911052,1727062409276,500.0,0.00021999,120]
[338911053,1727062409538,270.88255404,0.00021999,120]
[338911054,1727062412009,500.0,0.00021999,120]
[338911055,1727062412304,500.0,0.00021999,120]
[338911056,1727062412586,500.0,0.00021999,120]
[338911057,1727062412841,500.0,0.00021999,120]
[338911058,1727062413152,500.0,0.00021999,120]
[338911059,1727062413458,500.0,0.00021999,120]
[338911060,1727062413750,500.0,0.00021999,120]
[338911061,1727062414042,500.0,0.00021999,120]
[338911062,1727062414082,150.0,0.0001198,2]
[338911063,1727062414103,150.0,0.0001198,2]
[338911064,1727062414124,150.0,0.0001198,2]
[338911065,1727062414145,150.0,0.0001198,2]
[338911066,1727062414167,150.0,0.0001198,2]
[338911067,1727062414190,150.0,0.0001198,2]
[338911068,1727062414211,150.0,0.0001198,2]
[338911069,1727062414232,150.0,0.0001198,2]
[338911070,1727062414252,150.0,0.0001198,2]
[338911071,1727062414275,150.0,0.0001198,2]
[338911072,1727062414298,150.0,0.0001198,2]
[338911073,1727062414320,150.0,0.0001198,2]
[338911074,1727062414340,150.0,0.0001198,2]
[338911075,1727062414362,150.0,0.0001198,2]
[338911076,1727062414383,150.0,0.0001198,2]
[338911077,1727062414405,150.0,0.0001198,2]
[338911078,1727062414429,19630.0338,0.0001198,2]
[338911079,1727062414665,500.0,0.00021999,120]
[338911080,1727062414961,500.0,0.00021999,120]
[338911081,1727062415239,500.0,0.00021999,120]
[338911082,1727062415530,500.0,0.00021999,120]
[338911083,1727062415826,500.0,0.00021999,120]
[338911084,1727062416304,500.0,0.00021999,120]
[338911085,1727062416393,500.0,0.00021999,120]
[338911086,1727062416990,500.0,0.00021999,120]
[338911087,1727062417287,500.0,0.00021999,120]
[338911088,1727062417546,500.0,0.00021999,120]
[338911089,1727062418050,500.0,0.00021999,120]
[338911090,1727062418153,500.0,0.00021999,120]
[338911091,1727062418411,500.0,0.00021999,120]
[338911092,1727062418678,380.65936751,0.00021999,120]
[338911093,1727062421194,500.0,0.00021999,120]
[338911094,1727062421528,500.0,0.00021999,120]
[338911095,1727062421801,500.0,0.00021999,120]
[338911096,1727062422167,500.0,0.00021999,120]
[338911097,1727062422489,500.0,0.00021999,120]
[338911098,1727062422779,500.0,0.00021999,120]
[338911099,1727062423051,500.0,0.00021999,120]
[338911100,1727062423412,500.0,0.00021999,120]
[338911101,1727062423740,500.0,0.00021999,120]
[338911102,1727062424045,500.0,0.00021999,120]
[338911103,1727062424315,500.0,0.00021999,120]
[338911104,1727062424577,500.0,0.00021999,120]
[338911105,1727062424839,81.8924142,0.00021999,120]
[338911106,1727062429819,150.0,0.00010663,2]
[338911107,1727062436501,150.0,0.00012,2]
[338911108,1727062436522,150.0,0.00012,2]
[338911109,1727062436543,150.0,0.00012,2]
[338911110,1727062436564,150.0,0.00012,2]
[338911111,1727062436585,150.0,0.00012,2]
[338911112,1727062436605,150.0,0.00012,2]
[338911113,1727062436626,150.0,0.00012,2]
[338911114,1727062436646,150.0,0.00012,2]
[338911115,1727062436667,76.108407,0.00012,2]
[338911116,1727062441288,772.33789555,0.0001196,2]
[338911117,1727062457540,2236.0,0.00011959,2]
[338911118,1727062488515,250.0,0.00011702,2]
[338911119,1727062488559,150.0,0.0001198,2]
[338911120,1727062493473,150.0,0.00012,2]
[338911121,1727062493494,150.0,0.00012,2]
[338911122,1727062493514,150.0,0.00012,2]
[338911123,1727062493534,150.0,0.00012,2]
[338911124,1727062493556,150.0,0.00012,2]
[338911125,1727062493577,150.0,0.00012,2]
[338911126,1727062493597,150.0,0.00012,2]
[338911127,1727062493617,150.0,0.00012,2]
[338911128,1727062493638,95.26,0.00012,2]
[338911129,1727062501157,1050.0,0.0001196,2]
[338911130,1727062519085,650.0,0.00010663,2]
[338911131,1727062523689,150.0,0.00012,2]
[338911132,1727062524762,150.0,0.000119,2]
[338911133,1727062524782,150.0,0.000119,2]
[338911134,1727062535970,150.0,0.0001198,2]
[338911135,1727062535991,150.0,0.0001198,2]
[338911136,1727062536014,150.0,0.0001198,2]
[338911137,1727062536034,3834.8043,0.0001198,2]
[338911138,1727062552836,150.0,0.0001198,2]
[338911139,1727062552856,150.0,0.0001198,2]
[338911140,1727062552875,150.0,0.0001198,2]
[338911141,1727062552894,150.0,0.0001198,2]
[338911142,1727062552914,150.0,0.0001198,2]
[338911143,1727062552933,189.73459288,0.0001198,2]
[338911144,1727062552954,150.0,0.0001198,2]
[338911145,1727062552973,150.0,0.0001198,2]
[338911146,1727062552992,150.0,0.0001198,2]
[338911147,1727062553013,150.0,0.0001198,2]
[338911148,1727062553033,150.0,0.0001198,2]
[338911149,1727062553054,150.0,0.0001198,2]
[338911150,1727062553074,150.0,0.0001198,2]
[338911151,1727062553095,150.0,0.0001198,2]
[338911152,1727062553117,150.0,0.0001198,2]
[338911153,1727062553138,771.17050712,0.0001198,2]
[338911154,1727062560926,150.0,0.0001198,2]
[338911155,1727062560947,150.0,0.0001198,2]
[338911156,1727062560967,150.0,0.0001198,2]
[338911157,1727062560986,36.5612,0.0001198,2]
[338911158,1727062584929,750.0,0.000119,2]
[338911159,1727062619160,372.47,9.81e-05,2]
[338911160,1727062619705,250.0,0.00011728,2]
[338911161,1727062649206,3032.2513,0.0001198,2]
[338911162,1727062654726,282.84,0.0001392,30]
[338911163,1727062661715,153.94,0.00011728,2]
[338911164,1727062697085,150.0,0.00011728,2]
[338911165,1727062697108,150.0,0.00011728,2]
[338911166,1727062697130,150.0,0.00011728,2]
[338911167,1727062697151,150.0,0.00011728,2]
[338911168,1727062697171,150.0,0.00011728,2]
[338911169,1727062697194,150.0,0.00011728,2]
[338911170,1727062697217,100.0,0.00011728,2]
[338911171,1727062698462,23900.0,0.00011728,2]
[338911172,1727062713445,226.0818,0.0001198,2]
[338911173,1727062768134,150.0,0.00010959,2]
[338911174,1727062768154,19.26,0.00010959,2]
[338911175,1727062803231,150.61877191,0.0001198,2]
[338911176,1727062823504,298.82,0.00011756,2]
[338911177,1727062826287,250.0,0.00011756,2]
[338911178,1727062878453,270.19,0.00011742,2]
[338911179,1727062905664,150.0,0.00011836,2]
[338911180,1727062905685,150.0,0.00011836,2]
[338911181,1727062905707,166.42,0.00011836,2]
[338911182,1727062926776,1431.50417449,0.00012,2]
[338911186,1727063159357,250.0,0.00011679,2]
[338911187,1727063207842,370.61,9.786e-05,2]
[338911189,1727063243696,200.0,0.000118,4]
[338911190,1727063245810,500.0,0.000119,4]
[338911191,1727063277525,162.33,0.00011644,2]
[338911192,1727063300004,1000.0,0.00011643,2]
[338911201,1727063356821,224.61,0.00010959,2]
[338911202,1727063364232,569.5,0.00011666,2]
[338911204,1727063368218,225.30171597,0.0001198,2]
[338911245,1727063371564,348.16,0.00011666,2]
[338911288,1727063388464,250.0,0.00011666,2]
[338911289,1727063417347,1288.35375705,0.0001198,2]
[338911304,1727063432048,-799.0,0.00012031,2]
[338911305,1727063432058,-450.0,0.00012033,2]
[338911306,1727063432068,-370.61,0.0001205,2]
[338911307,1727063432077,-150.0,0.00012055,2]
[338911308,1727063432087,-164.89,0.0001207,2]
[338911309,1727063432099,-253.98176493,0.00012079,2]
[338911310,1727063432111,-150.0,0.00012079,2]
[338911311,1727063432122,-580.10732863,0.00012079,2]
[338911312,1727063432133,-199.30226172,0.00012079,2]
[338911313,1727063432143,-500.0,0.00012079,2]
[338911314,1727063432152,-457.56971523,0.00012079,2]
[338911315,1727063432162,-10788.53893027,0.0001208,2]
[338911316,1727063432174,-4393.78106973,0.0001208,2]
[338911317,1727063432183,-242.45680937,0.0001208,2]
[338911318,1727063432192,-33029.89187106,0.0001208,2]
[338911319,1727063432201,-216.16185118,0.0001208,2]
[338911320,1727063432211,-14981.09,0.0001208,2]
[338911321,1727063432222,-4170.41365297,0.0001208,2]
[338911324,1727063435843,2024.46524658,0.0001198,2]
[338911326,1727063438076,-41444.80634703,0.0001208,2]
[338911327,1727063438087,-1765.78,0.0001208,2]
[338911328,1727063438097,-164.72,0.0001208,2]
[338911329,1727063438107,-553.26,0.0001208,2]
[338911330,1727063438117,-751854.19925745,0.0001208,2]
[338911334,1727063439064,-32328.81934218,0.0001208,2]
[338911335,1727063439075,-3033.00472312,0.0001208,2]
[338911339,1727063439890,-112301.90411632,0.0001208,2]
[338911340,1727063440059,-1885.51938968,0.0001208,2]
[338911341,1727063440171,-1076.0,0.0001208,2]
[338911369,1727063442931,-10816.61358908,0.0001208,2]
[338911370,1727063442943,-2837.21292448,0.0001208,2]
[338911371,1727063443045,-3253.45260758,0.0001208,2]
[338911372,1727063443056,-29778.88781335,0.0001208,2]
[338911373,1727063443067,-892.25024187,0.0001208,2]
[338911374,1727063443102,-317.58278286,0.0001208,2]
[338911375,1727063443268,-8500.0,0.0001208,2]
[338911376,1727063443279,-13423.77494549,0.0001208,2]
[338911641,1727063446137,-278.81721648,0.0001208,2]
[338911648,1727063446195,-1484.371218,0.0001208,2]
[338911809,1727063447847,150.0,0.0001198,2]
[338911813,1727063447870,1460.7213,0.0001198,2]
[338911941,1727063458331,2500.0,0.0001198,2]
[338911942,1727063489884,1093.5968,0.0001198,2]
[338911943,1727063516457,418.46,0.00011689,2]
[338911944,1727063525403,159.76,0.00011689,2]
[338911945,1727063595107,809.09060916,0.00012,2]
[338911946,1727063624818,9135.57,0.00011711,2]
[338911947,1727063647716,204.0,0.0001187,2]
[338911948,1727063648141,204.0,0.0001168,2]
[338911949,1727063690982,150.0,0.00011708,2]
[338911950,1727063714702,250.0,0.00011713,2]
[338911951,1727063719595,2000.0,0.00011707,2]
[338911952,1727063754096,1050.0,0.00011,2]
[338911953,1727063775709,367.59,9.79e-05,2]
[338911954,1727063801199,1000.0,0.00011836,2]
[338911955,1727063927353,10000.0,0.00012,2]
[338911956,1727063934945,1050.0,0.00012,2]
[338911957,1727063937402,158.88,0.00010959,2]
[338911958,1727063947841,180.09,0.00011744,2]
[338911959,1727063947932,471.22,0.00011408,2]
[338911960,1727063954752,326.79310153,0.00011804,2]
[338911961,1727063959779,236.07799542,0.00011953,2]
[338911962,1727063961065,8000.0,0.00012,2]
[338911963,1727063976347,250.0,0.00011751,2]
[338911964,1727064021291,250.0,0.00011749,2]
[338911965,1727064036265,500.0,0.00010663,2]
[338911966,1727064052072,1000.0,0.00011755,2]
[338911967,1727064060096,4855.61311904,0.00011953,2]
[338911968,1727064080551,13022.8,0.00011758,2]
[338911969,1727064115951,209.23,0.00011758,2]
[338911970,1727064209765,271.455068,0.00012,2]
[338911982,1727064355690,1000.0,0.00021,120]
[338911983,1727064365683,200.0,0.00012,2]
[338911984,1727064393904,362.64,9.873e-05,2]
[338911993,1727064435101,300.0,0.00012,4]
[338911996,1727064486663,161.6,0.00010959,2]
[338911997,1727064491402,595.19014215,0.0001196,2]
[338911998,1727064508223,250.0,0.00011748,2]
[338912023,1727064548513,274.47535736,6.781e-05,7]
[338912069,1727064599930,-2038.0,0.00012054,2]
[338912070,1727064599952,-204.0,0.0001206,2]
[338912071,1727064599978,-300.0,0.00012079,2]
[338912072,1727064599999,-150.0,0.00012079,2]
[338912073,1727064600020,-15103.7,0.0001208,2]
[338912074,1727064600043,-53083.02392582,0.0001208,2]
[338912075,1727064600067,-744.02,0.000121,2]
[338912076,1727064603584,157.46,0.00012043,2]
[338912077,1727064616519,828.7,0.00010959,2]
[338912078,1727064617597,2952.778,0.00011953,2]
[338912083,1727064632031,-420.816,0.000121,4]
[338912084,1727064632084,-279.184,0.000121,4]
[338912085,1727064632094,-362.64,0.00012137,2]
[338912086,1727064632103,-1100.0,0.000122,4]
[338912087,1727064632113,-205.0,0.0001225,2]
[338912088,1727064632123,-204.0,0.0001225,2]
[338912089,1727064632132,-3106.62,0.0001225,2]
[338912090,1727064632142,-155.0,0.0001228,2]
[338912091,1727064632151,-246.86,0.0001228,2]
[338912092,1727064632160,-600.86,0.0001228,2]
[338912093,1727064632170,-150.99,0.0001228,2]
[338912094,1727064632179,-1500.0,0.000123,4]
[338912095,1727064632189,-499.99,0.000123,2]
[338912096,1727064632198,-323.3,0.000123,2]
[338912097,1727064632208,-150.45,0.000124,2]
[338912098,1727064632217,-300.0,0.000124,2]
[338912099,1727064632227,-1900.0,0.000124,4]
[338912100,1727064632236,-150.57,0.000124,2]
[338912101,1727064632246,-150.0,0.000124,2]
[338912102,1727064632255,-150.0,0.000124,2]
[338912103,1727064632264,-205.0,0.0001243,2]
[338912104,1727064632274,-204.0,0.0001243,2]
[338912105,1727064632283,-776.85299994,0.0001243,2]
[338912106,1727064632295,-764.1593386,0.0001243,2]
[338912108,1727064632306,-731.21407502,0.0001243,2]
[338912138,1727064637112,505.39930713,0.00010663,2]
[338912139,1727064637514,552.59046068,0.00010663,2]
[338912147,1727064638767,-491.77976376,0.0001243,2]
[338912148,1727064638778,-3095.36382268,0.0001243,2]
[338912149,1727064638788,-279.0,0.000125,2]
[338912150,1727064638798,-422.86,0.000125,2]
[338912151,1727064638807,-753.56,0.000125,2]
[338912152,1727064638817,-753.56,0.000125,2]